fUSD/lending_fUSD_20260610
["ID","MTS","AMOUNT","RATE_DAILY","PERIOD"]
[424733712,1781095853000,-2432.43071138,0.00034999,30]
[424733711,1781095853000,-152.0,0.00034999,30]
[424733714,1781095853000,-200.0,0.00034999,30]
[424733715,1781095853000,-160.0,0.00034999,30]
[424733722,1781095853000,-373.07297731,0.00034999,30]
[424733721,1781095853000,-10000.0,0.00034999,30]
[424733719,1781095853000,-194.72792766,0.00034999,30]
[424733720,1781095853000,-1000.0,0.00034999,30]
[424733718,1781095853000,-156.587,0.00034999,30]
[424733717,1781095853000,-151.0,0.00034999,30]
[424733723,1781095853000,-154.15483266,0.00034999,30]
[424733725,1781095853000,-151.0,0.00034999,30]
[424733726,1781095853000,-151.0,0.00034999,30]
[424733729,1781095853000,-160.00074875,0.00034999,30]
[424733727,1781095853000,-151.0,0.00034999,30]
[424733733,1781095853000,-151.0,0.00034999,30]
[424733731,1781095853000,-518.5,0.00034999,30]
[424733730,1781095853000,-1328.37351351,0.00034999,30]
[424733728,1781095853000,-250.0,0.00034999,30]
[424733734,1781095853000,-3629.5,0.00034999,30]
[424733762,1781095853000,-162.380719,0.00034999,30]
[424733716,1781095853000,-500.0,0.00034999,30]
[424733764,1781095853000,-644.79446245,0.00034999,30]
[424733795,1781095853000,-557.5788265,0.00034999,30]
[424733796,1781095853000,-194.72792766,0.00034999,30]
[424733793,1781095853000,-500.0,0.00034999,30]
[424733794,1781095853000,-3903.0517855,0.00034999,30]
[424733798,1781095853000,-500.0,0.00034999,30]
[424733797,1781095853000,-151.0,0.00034999,30]
[424733799,1781095853000,-579.88197956,0.00034999,30]
[424733805,1781095853000,-174.61919141,0.00034999,30]
[424733802,1781095853000,-160.0,0.00034999,30]
[424733801,1781095853000,-7681.20591386,0.00034999,30]
[424733804,1781095853000,-3020.56915995,0.00034999,30]
[424733803,1781095853000,-500.0,0.00034999,30]
[424733800,1781095853000,-200.0,0.00034999,30]
[424733808,1781095853000,-152.0,0.00034999,30]
[424733806,1781095853000,-151.0,0.00034999,30]
[424733813,1781095853000,-250.0,0.00034999,30]
[424733809,1781095853000,-151.0,0.00034999,30]
[424733807,1781095853000,-160.00074875,0.00034999,30]
[424733811,1781095853000,-10000.0,0.00034999,30]
[424733810,1781095853000,-578.20924308,0.00034999,30]
[424733812,1781095853000,-154.15483266,0.00034999,30]
[424733814,1781095853000,-1000.0,0.00034999,30]
[424733761,1781095853000,-187.78006524,0.00034999,30]
[424733791,1781095853000,-168.3888056,0.00034999,30]
[424733792,1781095853000,-151.0,0.00034999,30]
[424733790,1781095853000,-151.0,0.00034999,30]
[424733772,1781095853000,-500.0,0.00034999,30]
[424733766,1781095853000,-537.6845,0.00034999,30]
[424733767,1781095853000,-151.0,0.00034999,30]
[424733768,1781095853000,-500.0,0.00034999,30]
[424733775,1781095853000,-160.0,0.00034999,30]
[424733769,1781095853000,-559.19188,0.00034999,30]
[424733776,1781095853000,-152.0,0.00034999,30]
[424733771,1781095853000,-151.0,0.00034999,30]
[424733773,1781095853000,-7407.141672,0.00034999,30]
[424733774,1781095853000,-168.3888056,0.00034999,30]
[424733770,1781095853000,-200.0,0.00034999,30]
[424733789,1781095853000,-668.65185762,0.00034999,30]
[424733788,1781095853000,-151.0,0.00034999,30]
[424733778,1781095853000,-557.5788265,0.00034999,30]
[424733777,1781095853000,-518.49074744,0.00034999,30]
[424733779,1781095853000,-154.15483266,0.00034999,30]
[424733781,1781095853000,-1000.0,0.00034999,30]
[424733782,1781095853000,-250.0,0.00034999,30]
[424733784,1781095853000,-160.00074875,0.00034999,30]
[424733780,1781095853000,-151.0,0.00034999,30]
[424733783,1781095853000,-10000.0,0.00034999,30]
[424733786,1781095853000,-162.380719,0.00034999,30]
[424733785,1781095853000,-151.0,0.00034999,30]
[424733787,1781095853000,-151.0,0.00034999,30]
[424733765,1781095853000,-3763.7915,0.00034999,30]
[424733763,1781095853000,-151.0,0.00034999,30]
[424733820,1781095854000,-2527.38535679,0.00034999,30]
[424733818,1781095854000,-578.20924308,0.00034999,30]
[424733817,1781095854000,-151.0,0.00034999,30]
[424733815,1781095854000,-151.0,0.00034999,30]
[424733816,1781095854000,-168.3888056,0.00034999,30]
[424733819,1781095854000,-174.61919141,0.00034999,30]
[424733821,1781095855000,-1177.11,0.00034999,30]
[424733823,1781095855000,-151.0,0.00034999,30]
[424733827,1781095855000,-156.587,0.00034999,30]
[424733825,1781095855000,-167.80251098,0.00034999,30]
[424733830,1781095855000,-420.86569279,0.00034999,30]
[424733829,1781095855000,-180.47192001,0.00034999,30]
[424733832,1781095855000,-7965.41053267,0.00034999,30]
[424733831,1781095855000,-500.0,0.00034999,30]
[424733828,1781095855000,-200.0,0.00034999,30]
[424733826,1781095855000,-34.13035,0.00034999,30]
[424733833,1781095855000,-500.0,0.00034999,30]
[424733824,1781095855000,-500.0,0.00034999,30]
[424733822,1781095855000,-342.96934477,0.00034999,30]
[424733834,1781095855000,-160.0,0.00034999,30]
[424733835,1781095855000,-181.08010149,0.00034999,30]
[424733842,1781095855000,-2509.42855569,0.00034999,30]
[424733844,1781095855000,-250.0,0.00034999,30]
[424733838,1781095855000,-151.0,0.00034999,30]
[424733837,1781095855000,-151.0,0.00034999,30]
[424733846,1781095855000,-151.0,0.00034999,30]
[424733839,1781095855000,-160.00074875,0.00034999,30]
[424733845,1781095855000,-152.0,0.00034999,30]
[424733843,1781095855000,-1000.0,0.00034999,30]
[424733847,1781095855000,-276.47958246,0.00034999,30]
[424733840,1781095855000,-599.60298507,0.00034999,30]
[424733841,1781095855000,-154.15483266,0.00034999,30]
[424733836,1781095855000,-151.0,0.00034999,30]
[424733869,1781095856000,-415.16230683,0.00028148,30]
[424733860,1781095856000,-151.0,0.00034999,30]
[424733870,1781095856000,-30.69181191,0.00034999,30]
[424733868,1781095856000,-686.00769317,0.00028148,30]
[424733867,1781095856000,-150.20404103,0.00034999,30]
[424733866,1781095856000,-151.0,0.00034999,30]
[424733864,1781095856000,-160.0,0.00034999,30]
[424733865,1781095856000,-187.78006524,0.00034999,30]
[424733857,1781095856000,-4197.22089552,0.00034999,30]
[424733855,1781095856000,-181.08010149,0.00034999,30]
[424733871,1781095856000,-1101.17,0.0002829,7]
[424733853,1781095856000,-323.12340261,0.00034999,30]
[424733858,1781095856000,-500.0,0.00034999,30]
[424733856,1781095856000,-174.61919141,0.00034999,30]
[424733854,1781095856000,-151.0,0.00034999,30]
[424733851,1781095856000,-1101.17,0.00028006,2]
[424733852,1781095856000,-305.385677,0.00034,7]
[424733861,1781095856000,-8260.13072238,0.00034999,30]
[424733863,1781095856000,-623.58710447,0.00034999,30]
[424733862,1781095856000,-500.0,0.00034999,30]
[424733849,1781095856000,-1101.17,0.00027722,30]
[424733850,1781095856000,-1101.17,0.00027864,7]
[424733848,1781095856000,-170.1,0.00024658,2]
[424733873,1781095856000,-200.0,0.00030203,2]
[424733859,1781095856000,-200.0,0.00034999,30]
[424733878,1781095856000,-150.1842263,0.00034999,30]
[424733887,1781095856000,-599.78908932,0.000131,2]
[424733874,1781095856000,-305.385677,0.00034,7]
[424733876,1781095856000,-151.0,0.00034999,30]
[424733901,1781095856000,-4352.51806865,0.00034999,30]
[424733898,1781095856000,-621.78829552,0.00034999,30]
[424733899,1781095856000,-152.0,0.00034999,30]
[424733900,1781095856000,-151.0,0.00034999,30]
[424733895,1781095856000,-982.83892142,0.00034999,30]
[424733896,1781095856000,-151.0,0.00034999,30]
[424733894,1781095856000,-200.0,0.00029435,2]
[424733893,1781095856000,-200.0,0.00028667,2]
[424733892,1781095856000,-200.0,0.00027898,2]
[424733890,1781095856000,-200.0,0.00026362,2]
[424733891,1781095856000,-200.0,0.0002713,2]
[424733897,1781095856000,-151.0,0.00034999,30]
[424733888,1781095856000,-2122.98673464,0.000131,2]
[424733889,1781095856000,-6593.23013441,0.000131,2]
[424733877,1781095856000,-12.1964927,0.00034999,30]
[424733872,1781095856000,-139.07704852,0.00034999,30]
[424733880,1781095856000,-250.0,0.00034999,30]
[424733881,1781095856000,-154.15483266,0.00034999,30]
[424733879,1781095856000,-160.00074875,0.00034999,30]
[424733875,1781095856000,-180.02709854,0.00034999,30]
[424733883,1781095856000,-2029.42715425,0.000131,2]
[424733884,1781095856000,-315.49158619,0.000131,2]
[424733885,1781095856000,-8778.84769887,0.000131,2]
[424733886,1781095856000,-10847.72803583,0.000131,2]
[424733882,1781095856000,-17.16107858,0.00034999,30]
[424733946,1781095857000,-174.61919141,0.00034999,30]
[424733943,1781095857000,-151.0,0.00034999,30]
[424733940,1781095857000,-668.65185757,0.00034999,30]
[424733941,1781095857000,-250.0,0.00034999,30]
[424733927,1781095857000,-152.0,0.00034999,30]
[424733938,1781095857000,-160.00074875,0.00034999,30]
[424733937,1781095857000,-500.0,0.00034999,30]
[424733935,1781095857000,-201.93286098,0.00034999,30]
[424733932,1781095857000,-670.58624095,0.00034999,30]
[424733939,1781095857000,-151.0,0.00034999,30]
[424733942,1781095857000,-151.0,0.00034999,30]
[424733945,1781095857000,-1010.67516921,0.00034999,30]
[424733956,1781095857000,-160.00074875,0.00034999,30]
[424733936,1781095857000,-151.0,0.00034999,30]
[424733949,1781095857000,-200.0,0.00034999,30]
[424733947,1781095857000,-160.0,0.00034999,30]
[424733955,1781095857000,-151.0,0.00034999,30]
[424733953,1781095857000,-191.71570536,0.00034999,30]
[424733951,1781095857000,-500.0,0.00034999,30]
[424733952,1781095857000,-9211.34798985,0.00034999,30]
[424733948,1781095857000,-668.65185756,0.00034999,30]
[424733950,1781095857000,-151.0,0.00034999,30]
[424733954,1781095857000,-209.40437684,0.00034999,30]
[424733957,1781095857000,-695.39793187,0.00034999,30]
[424733930,1781095857000,-151.0,0.00034999,30]
[424733944,1781095857000,-4680.56300297,0.00034999,30]
[424733929,1781095857000,-8882.6885148,0.00034999,30]
[424733917,1781095857000,-160.00074875,0.00034999,30]
[424733926,1781095857000,-200.0,0.00034999,30]
[424733902,1781095857000,-621.78829552,0.00034999,30]
[424733904,1781095857000,-200.0,0.00034999,30]
[424733903,1781095857000,-500.0,0.00034999,30]
[424733906,1781095857000,-288.22903549,0.00034999,30]
[424733907,1781095857000,-151.0,0.00034999,30]
[424733908,1781095857000,-8565.75555911,0.00034999,30]
[424733910,1781095857000,-646.65982734,0.00034999,30]
[424733911,1781095857000,-181.08010149,0.00034999,30]
[424733905,1781095857000,-160.0,0.00034999,30]
[424733909,1781095857000,-500.0,0.00034999,30]
[424733913,1781095857000,-500.0,0.00034999,30]
[424733915,1781095857000,-151.0,0.00034999,30]
[424733928,1781095857000,-151.0,0.00034999,30]
[424733912,1781095857000,-151.0,0.00034999,30]
[424733916,1781095857000,-168.3888056,0.00034999,30]
[424733919,1781095857000,-644.79446245,0.00034999,30]
[424733921,1781095857000,-151.0,0.00034999,30]
[424733920,1781095857000,-250.0,0.00034999,30]
[424733922,1781095857000,-151.0,0.00034999,30]
[424733918,1781095857000,-1000.0,0.00034999,30]
[424733924,1781095857000,-644.79446245,0.00034999,30]
[424733933,1781095857000,-500.0,0.00034999,30]
[424733925,1781095857000,-160.0,0.00034999,30]
[424733931,1781095857000,-500.0,0.00034999,30]
[424733923,1781095857000,-4513.56123719,0.00034999,30]
[424733934,1781095857000,-187.78006524,0.00034999,30]
[424733914,1781095857000,-194.72792766,0.00034999,30]
[424733969,1781095857000,-217.15233878,0.00034999,30]
[424733963,1781095857000,-151.0,0.00034999,30]
[424733970,1781095857000,-160.00074875,0.00034999,30]
[424733990,1781095857000,-151.0,0.00034999,30]
[424733991,1781095857000,-775.4783256,0.00034999,30]
[424733994,1781095857000,-273.35166149,0.00034999,30]
[424734000,1781095857000,-804.17102365,0.00034999,30]
[424733996,1781095857000,-151.0,0.00034999,30]
[424733995,1781095857000,-151.0,0.00034999,30]
[424734001,1781095857000,-160.00074875,0.00034999,30]
[424733997,1781095857000,-151.0,0.00034999,30]
[424733998,1781095857000,-152.0,0.00034999,30]
[424734002,1781095857000,-500.0,0.00034999,30]
[424734003,1781095857000,-151.0,0.00034999,30]
[424733999,1781095857000,-194.72792766,0.00034999,30]
[424734005,1781095857000,-151.0,0.00034999,30]
[424734006,1781095857000,-160.00074875,0.00034999,30]
[424734012,1781095857000,-151.0,0.00034999,30]
[424734007,1781095857000,-833.92535152,0.00034999,30]
[424734011,1781095857000,-201.93286098,0.00034999,30]
[424734013,1781095857000,-151.0,0.00034999,30]
[424734009,1781095857000,-500.0,0.00034999,30]
[424734004,1781095857000,-151.0,0.00034999,30]
[424734015,1781095857000,-864.78058953,0.00034999,30]
[424734016,1781095857000,-500.0,0.00034999,30]
[424734010,1781095857000,-152.0,0.00034999,30]
[424734014,1781095857000,-151.0,0.00034999,30]
[424733959,1781095857000,-151.0,0.00034999,30]
[424733989,1781095857000,-151.0,0.00034999,30]
[424733985,1781095857000,-500.0,0.00034999,30]
[424734008,1781095857000,-500.0,0.00034999,30]
[424733988,1781095857000,-151.0,0.00034999,30]
[424733993,1781095857000,-500.0,0.00034999,30]
[424733958,1781095857000,-194.72792766,0.00034999,30]
[424733966,1781095857000,-532.5547041,0.00034999,30]
[424733962,1781095857000,-151.0,0.00034999,30]
[424733968,1781095857000,-500.0,0.00034999,30]
[424733967,1781095857000,-151.0,0.00034999,30]
[424733964,1781095857000,-152.0,0.00034999,30]
[424733961,1781095857000,-151.0,0.00034999,30]
[424733965,1781095857000,-181.08010149,0.00034999,30]
[424733971,1781095857000,-721.12765534,0.00034999,30]
[424733973,1781095857000,-151.0,0.00034999,30]
[424733980,1781095857000,-500.0,0.00034999,30]
[424733972,1781095857000,-500.0,0.00034999,30]
[424733960,1781095857000,-500.0,0.00034999,30]
[424733981,1781095857000,-151.0,0.00034999,30]
[424733987,1781095857000,-151.0,0.00034999,30]
[424733974,1781095857000,-151.0,0.00034999,30]
[424733986,1781095857000,-151.0,0.00034999,30]
[424733983,1781095857000,-160.00074875,0.00034999,30]
[424733984,1781095857000,-747.80937859,0.00034999,30]
[424733982,1781095857000,-326.47017685,0.00034999,30]
[424733992,1781095857000,-160.00074875,0.00034999,30]
[424733978,1781095857000,-187.78006524,0.00034999,30]
[424733976,1781095857000,-151.0,0.00034999,30]
[424733975,1781095857000,-201.93286101,0.00034999,30]
[424733979,1781095857000,-152.0,0.00034999,30]
[424733977,1781095857000,-151.0,0.00034999,30]
[424734039,1781095858000,-267.10641164,0.00034999,30]
[424734037,1781095858000,-438.13910944,0.00034999,30]
[424734047,1781095858000,-500.0,0.00034999,30]
[424734042,1781095858000,-151.0,0.00034999,30]
[424734043,1781095858000,-152.0,0.00034999,30]
[424734044,1781095858000,-500.0,0.00034999,30]
[424734046,1781095858000,-151.0,0.00034999,30]
[424734045,1781095858000,-151.0,0.00034999,30]
[424734050,1781095858000,-151.0,0.00034999,30]
[424734054,1781095858000,-151.0,0.00034999,30]
[424734051,1781095858000,-500.0,0.00034999,30]
[424734052,1781095858000,-151.0,0.00034999,30]
[424734048,1781095858000,-151.0,0.00034999,30]
[424734053,1781095858000,-500.0,0.00034999,30]
[424734055,1781095858000,-500.0,0.00034999,30]
[424734062,1781095858000,-152.0,0.00034999,30]
[424734034,1781095858000,-152.0,0.00034999,30]
[424734059,1781095858000,-500.0,0.00034999,30]
[424734049,1781095858000,-152.0,0.00034999,30]
[424734032,1781095858000,-500.0,0.00034999,30]
[424734023,1781095858000,-500.0,0.00034999,30]
[424734033,1781095858000,-151.0,0.00034999,30]
[424734057,1781095858000,-152.0,0.00034999,30]
[424734018,1781095858000,-151.0,0.00034999,30]
[424734028,1781095858000,-151.0,0.00034999,30]
[424734027,1781095858000,-151.0,0.00034999,30]
[424734026,1781095858000,-152.0,0.00034999,30]
[424734025,1781095858000,-896.77747134,0.00034999,30]
[424734020,1781095858000,-151.0,0.00034999,30]
[424734024,1781095858000,-500.0,0.00034999,30]
[424734036,1781095858000,-151.0,0.00034999,30]
[424734019,1781095858000,-151.0,0.00034999,30]
[424734022,1781095858000,-151.0,0.00034999,30]
[424734030,1781095858000,-217.15233878,0.00034999,30]
[424734029,1781095858000,-151.0,0.00034999,30]
[424734041,1781095858000,-151.0,0.00034999,30]
[424734040,1781095858000,-500.0,0.00034999,30]
[424734031,1781095858000,-151.0,0.00034999,30]
[424734035,1781095858000,-500.0,0.00034999,30]
[424734038,1781095858000,-151.0,0.00034999,30]
[424734021,1781095858000,-209.40437684,0.00034999,30]
[424734056,1781095858000,-151.0,0.00034999,30]
[424734017,1781095858000,-152.0,0.00034999,30]
[424734058,1781095858000,-151.0,0.00034999,30]
[424734087,1781095858000,-29548.84677345,0.00035,7]
[424734091,1781095858000,-199.66604064,0.00035,120]
[424734089,1781095858000,-407.50870982,0.00035,120]
[424734085,1781095858000,-1502.91269451,0.00035,120]
[424734095,1781095858000,-210.67196124,0.00035,120]
[424734094,1781095858000,-320.10232122,0.00035,120]
[424734092,1781095858000,-1831.86948476,0.00035,120]
[424734088,1781095858000,-332.63256615,0.00035,120]
[424734090,1781095858000,-174.29170218,0.00035,7]
[424734093,1781095858000,-1649.13533443,0.00035,120]
[424734096,1781095858000,-180.25466661,0.00035,120]
[424734098,1781095858000,-172.53413826,0.00035,120]
[424734099,1781095858000,-427.60588631,0.00035,120]
[424734097,1781095858000,-1216.67543188,0.00035,120]
[424734102,1781095858000,-169.64074854,0.00035,120]
[424734101,1781095858000,-282.3131898,0.00035,120]
[424734100,1781095858000,-364.56391287,0.00035,120]
[424734103,1781095858000,-40247.5976515,0.00035,7]
[424734060,1781095858000,-151.0,0.00034999,30]
[424734080,1781095858000,-194.94433173,0.00035,120]
[424734082,1781095858000,-208.32778592,0.00035,120]
[424734086,1781095858000,-29548.84677345,0.00035,7]
[424734079,1781095858000,-161.73,0.00035,2]
[424734061,1781095858000,-151.0,0.00034999,30]
[424734064,1781095858000,-500.0,0.00034999,30]
[424734071,1781095858000,-152.0,0.00034999,30]
[424734068,1781095858000,-151.0,0.00034999,30]
[424734067,1781095858000,-152.0,0.00034999,30]
[424734066,1781095858000,-151.0,0.00034999,30]
[424734070,1781095858000,-151.0,0.00034999,30]
[424734065,1781095858000,-151.0,0.00034999,30]
[424734081,1781095858000,-150.0,0.00035,7]
[424734063,1781095858000,-151.0,0.00034999,30]
[424734069,1781095858000,-151.0,0.00034999,30]
[424734073,1781095858000,-200.0,0.00034999,14]
[424734075,1781095858000,-281.17196274,0.00034999,120]
[424734078,1781095858000,-489.2465004,0.00035,120]
[424734077,1781095858000,-178.07945567,0.00035,120]
[424734074,1781095858000,-150.0,0.00034999,120]
[424734076,1781095858000,-160.0,0.00035,120]
[424734084,1781095858000,-177.82131138,0.00035,120]
[424734083,1781095858000,-255.25011817,0.00035,120]
[424734072,1781095858000,-100000.0,0.00034999,7]
[424734110,1781095859000,-868.29,0.00027995,2]
[424734104,1781095859000,-444.02689022,0.00035,7]
[424734105,1781095859000,-151.0,0.00020703,2]
[424734106,1781095859000,-151.0,0.00020703,2]
[424734108,1781095859000,-868.29,0.00027708,30]
[424734111,1781095859000,-284.95203121,0.00028,10]
[424734107,1781095859000,-200.0,0.00025594,2]
[424734109,1781095859000,-868.29,0.00027851,7]
[424734113,1781095859000,-366.69020406,0.00035,7]
[424734114,1781095859000,-868.29,0.00028138,30]
[424734112,1781095859000,-2791.6941825,0.00035,7]
[424734115,1781095859000,-13305.34434057,0.00035,7]
[424734117,1781095860000,-1490.89436833,0.00035,7]
[424734116,1781095860000,-151.0,0.00020703,2]
[424734119,1781095860000,-59097.69354689,0.00035,7]
[424734118,1781095860000,-451.44590971,0.00035,7]
[424734122,1781095860000,-13217.37220189,0.00035,2]
[424734121,1781095860000,-200.0,0.00035,2]
[424734123,1781095860000,-348.00732758,0.00035,2]
[424734124,1781095860000,-269.86760899,0.00035,2]
[424734120,1781095860000,-192.0,0.00035,2]
[424734133,1781096790000,-466.18530722,0.00010989,2]
[424734135,1781096983000,-1533.81469278,0.00010989,2]
[424734136,1781096983000,-845.20063783,0.00010989,2]
[424734164,1781097031000,-4000.0,0.00012088,2]
[424734165,1781097031000,-413.6172085,0.00012088,2]
[424734167,1781097031000,-166.66,0.00012206,2]
[424734168,1781097031000,-500.0,0.00012306,2]
[424734171,1781097031000,-166.66,0.00012458,2]
[424734175,1781097031000,-610.0,0.0001255,2]
[424734170,1781097031000,-166.09,0.00012339,2]
[424734169,1781097031000,-175.11,0.00012329,2]
[424734172,1781097031000,-150.0,0.000125,2]
[424734174,1781097031000,-1000.0,0.00012549,2]
[424734176,1781097031000,-150.0,0.0001255,2]
[424734163,1781097031000,-312.40637375,0.00012088,2]
[424734173,1781097031000,-150.0,0.00012549,2]
[424734166,1781097031000,-250.0,0.00012088,2]
[424734153,1781097031000,-1910.21,0.0001122,2]
[424734161,1781097031000,-155.4,0.0001198,2]
[424734160,1781097031000,-166.66,0.00011954,2]
[424734159,1781097031000,-2000.0,0.00011875,2]
[424734157,1781097031000,-1262.3,0.00011765,2]
[424734155,1781097031000,-180.8,0.00011669,2]
[424734158,1781097031000,-9220.01,0.00011812,2]
[424734156,1781097031000,-150.0,0.00011717,2]
[424734152,1781097031000,-239.93360872,0.00011209,7]
[424734154,1781097031000,-6918.63,0.00011602,2]
[424734150,1781097031000,-351.16,0.00010989,2]
[424734151,1781097031000,-284.95203121,0.00011,2]
[424734149,1781097031000,-260.49,0.00010989,2]
[424734148,1781097031000,-1154.79936217,0.00010989,2]
[424734162,1781097031000,-628.7,0.0001198,2]
[424734177,1781097031000,-610.0,0.0001255,2]
[424734194,1781097031000,-610.0,0.0001255,2]
[424734191,1781097031000,-610.0,0.0001255,2]
[424734179,1781097031000,-610.0,0.0001255,2]
[424734224,1781097031000,-466.0,0.0001255,2]
[424734223,1781097031000,-247.47250466,0.0001255,2]
[424734221,1781097031000,-500.0,0.0001255,2]
[424734220,1781097031000,-466.0,0.0001255,2]
[424734218,1781097031000,-500.0,0.0001255,2]
[424734222,1781097031000,-466.0,0.0001255,2]
[424734217,1781097031000,-618.58040011,0.0001255,2]
[424734216,1781097031000,-610.0,0.0001255,2]
[424734215,1781097031000,-610.0,0.0001255,2]
[424734213,1781097031000,-610.0,0.0001255,2]
[424734214,1781097031000,-610.0,0.0001255,2]
[424734205,1781097031000,-610.0,0.0001255,2]
[424734206,1781097031000,-610.0,0.0001255,2]
[424734219,1781097031000,-466.0,0.0001255,2]
[424734203,1781097031000,-610.0,0.0001255,2]
[424734204,1781097031000,-610.0,0.0001255,2]
[424734181,1781097031000,-215.7929916,0.0001255,2]
[424734187,1781097031000,-610.0,0.0001255,2]
[424734183,1781097031000,-610.0,0.0001255,2]
[424734185,1781097031000,-610.0,0.0001255,2]
[424734178,1781097031000,-150.0,0.0001255,2]
[424734198,1781097031000,-610.0,0.0001255,2]
[424734212,1781097031000,-610.0,0.0001255,2]
[424734196,1781097031000,-610.0,0.0001255,2]
[424734200,1781097031000,-610.0,0.0001255,2]
[424734189,1781097031000,-610.0,0.0001255,2]
[424734210,1781097031000,-610.0,0.0001255,2]
[424734208,1781097031000,-610.0,0.0001255,2]
[424734260,1781097032000,-150.0,0.0001255,2]
[424734253,1781097032000,-500.0,0.0001255,2]
[424734250,1781097032000,-397.37892481,0.0001255,2]
[424734254,1781097032000,-500.0,0.0001255,2]
[424734258,1781097032000,-500.0,0.0001255,2]
[424734261,1781097032000,-500.0,0.0001255,2]
[424734263,1781097032000,-500.0,0.0001255,2]
[424734259,1781097032000,-466.92775594,0.0001255,2]
[424734262,1781097032000,-500.0,0.0001255,2]
[424734255,1781097032000,-500.0,0.0001255,2]
[424734251,1781097032000,-500.0,0.0001255,2]
[424734270,1781097032000,-500.0,0.0001255,2]
[424734268,1781097032000,-500.0,0.0001255,2]
[424734265,1781097032000,-500.0,0.0001255,2]
[424734264,1781097032000,-500.0,0.0001255,2]
[424734266,1781097032000,-500.0,0.0001255,2]
[424734269,1781097032000,-500.0,0.0001255,2]
[424734273,1781097032000,-500.0,0.0001255,2]
[424734272,1781097032000,-500.0,0.0001255,2]
[424734271,1781097032000,-500.0,0.0001255,2]
[424734277,1781097032000,-500.0,0.0001255,2]
[424734252,1781097032000,-500.0,0.0001255,2]
[424734267,1781097032000,-500.0,0.0001255,2]
[424734249,1781097032000,-500.0,0.0001255,2]
[424734238,1781097032000,-466.0,0.0001255,2]
[424734245,1781097032000,-500.0,0.0001255,2]
[424734227,1781097032000,-466.0,0.0001255,2]
[424734225,1781097032000,-466.0,0.0001255,2]
[424734228,1781097032000,-466.0,0.0001255,2]
[424734226,1781097032000,-466.0,0.0001255,2]
[424734229,1781097032000,-466.0,0.0001255,2]
[424734231,1781097032000,-466.0,0.0001255,2]
[424734232,1781097032000,-466.0,0.0001255,2]
[424734230,1781097032000,-466.0,0.0001255,2]
[424734233,1781097032000,-466.0,0.0001255,2]
[424734234,1781097032000,-466.0,0.0001255,2]
[424734237,1781097032000,-466.0,0.0001255,2]
[424734241,1781097032000,-466.0,0.0001255,2]
[424734235,1781097032000,-466.0,0.0001255,2]
[424734236,1781097032000,-466.0,0.0001255,2]
[424734239,1781097032000,-466.0,0.0001255,2]
[424734240,1781097032000,-466.0,0.0001255,2]
[424734243,1781097032000,-466.0,0.0001255,2]
[424734278,1781097032000,-500.0,0.0001255,2]
[424734244,1781097032000,-468.48877466,0.0001255,2]
[424734246,1781097032000,-500.0,0.0001255,2]
[424734257,1781097032000,-500.0,0.0001255,2]
[424734256,1781097032000,-500.0,0.0001255,2]
[424734247,1781097032000,-500.0,0.0001255,2]
[424734248,1781097032000,-500.0,0.0001255,2]
[424734274,1781097032000,-500.0,0.0001255,2]